[Event "*** SCC Grand Prix: Titled Tuesday Blitz"]
[Site "Chess.com"]
[Date "2020.06.23"]
[Round "10"]
[White "realmadridtv"]
[Black "EvgenyRomanov"]
[Result "0-1"]
[WhiteElo "2478"]
[BlackElo "2631"]
[TimeControl "180+1"]
[EndTime "11:57:55 PDT"]
[Termination "EvgenyRomanov won by checkmate"]

1. d4 {[%clk 0:03:00.9]} 1... Nf6 {[%clk 0:02:59]} 2. c4 {[%clk 0:03:00.6]} 2...
c5 {[%clk 0:02:58.8]} 3. d5 {[%clk 0:03:00]} 3... b5 {[%clk 0:02:59.3]} 4. cxb5
{[%clk 0:02:59.3]} 4... a6 {[%clk 0:02:59.6]} 5. bxa6 {[%clk 0:02:59.4]} 5... g6
{[%clk 0:02:59.2]} 6. Nc3 {[%clk 0:02:58.3]} 6... Bg7 {[%clk 0:02:59]} 7. e4
{[%clk 0:02:58.8]} 7... O-O {[%clk 0:02:55.6]} 8. Be2 {[%clk 0:02:57.5]} 8...
Qa5 {[%clk 0:02:51.6]} 9. e5 {[%clk 0:02:50.5]} 9... Ne4 {[%clk 0:02:43.6]} 10.
Nf3 {[%clk 0:02:44.8]} 10... Bxa6 {[%clk 0:02:33.8]} 11. O-O {[%clk 0:02:40.5]}
11... Nxc3 {[%clk 0:02:30.3]} 12. bxc3 {[%clk 0:02:39.8]} 12... Qxc3 {[%clk
0:02:24.9]} 13. Bd2 {[%clk 0:02:26.7]} 13... Qa3 {[%clk 0:02:24.3]} 14. Bg5
{[%clk 0:01:55.5]} 14... Re8 {[%clk 0:02:18.5]} 15. Re1 {[%clk 0:01:29.1]} 15...
d6 {[%clk 0:02:11.6]} 16. e6 {[%clk 0:01:23.1]} 16... fxe6 {[%clk 0:01:49.5]}
17. dxe6 {[%clk 0:01:18.3]} 17... Bxe2 {[%clk 0:01:46.1]} 18. Rxe2 {[%clk
0:01:12.6]} 18... Nc6 {[%clk 0:01:39.7]} 19. Rb1 {[%clk 0:01:08.1]} 19... Rab8
{[%clk 0:01:37.7]} 20. Rxb8 {[%clk 0:01:03.1]} 20... Rxb8 {[%clk 0:01:37.3]} 21.
h4 {[%clk 0:00:57.7]} 21... h6 {[%clk 0:01:33.6]} 22. Bf4 {[%clk 0:00:37.3]}
22... Rb4 {[%clk 0:01:09.4]} 23. Bxd6 {[%clk 0:00:29.2]} 23... Nd4 {[%clk
0:00:33.1]} 24. Re3 {[%clk 0:00:28.6]} 24... Qxa2 {[%clk 0:00:26.8]} 25. Qd3
{[%clk 0:00:28.7]} 25... Qb1+ {[%clk 0:00:24.5]} 26. Qxb1 {[%clk 0:00:25.9]}
26... Rxb1+ {[%clk 0:00:23.9]} 27. Kh2 {[%clk 0:00:26.5]} 27... Nxf3+ {[%clk
0:00:20.2]} 28. gxf3 {[%clk 0:00:26.1]} 28... Bd4 {[%clk 0:00:14.3]} 29. Bxe7
{[%clk 0:00:16.7]} 29... Bxe3 {[%clk 0:00:13.2]} 30. fxe3 {[%clk 0:00:17.6]}
30... c4 {[%clk 0:00:12]} 31. Bf6 {[%clk 0:00:16.7]} 31... Kf8 {[%clk
0:00:11.9]} 32. h5 {[%clk 0:00:15.1]} 32... gxh5 {[%clk 0:00:11.3]} 33. Kg3
{[%clk 0:00:15.5]} 33... Rc1 {[%clk 0:00:11.3]} 34. Kf4 {[%clk 0:00:14.9]} 34...
c3 {[%clk 0:00:11.4]} 35. Ke4 {[%clk 0:00:14.9]} 35... c2 {[%clk 0:00:10.6]} 36.
Kd3 {[%clk 0:00:13.9]} 36... Rf1 {[%clk 0:00:11]} 37. Kxc2 {[%clk 0:00:13.6]}
37... Rxf3 {[%clk 0:00:11.7]} 38. Bd4 {[%clk 0:00:12.7]} 38... Ke7 {[%clk
0:00:11.5]} 39. Kd3 {[%clk 0:00:12.7]} 39... Kxe6 {[%clk 0:00:11.6]} 40. Ke4
{[%clk 0:00:13.6]} 40... Rf7 {[%clk 0:00:11.6]} 41. Bc3 {[%clk 0:00:11.7]} 41...
h4 {[%clk 0:00:11.8]} 42. Be1 {[%clk 0:00:12]} 42... h3 {[%clk 0:00:12.2]} 43.
Bg3 {[%clk 0:00:12.6]} 43... h5 {[%clk 0:00:12.1]} 44. Bf4 {[%clk 0:00:11.2]}
44... Rxf4+ {[%clk 0:00:11.7]} 45. exf4 {[%clk 0:00:11.2]} 45... h2 {[%clk
0:00:12.2]} 46. f5+ {[%clk 0:00:12.1]} 46... Kf6 {[%clk 0:00:12.3]} 47. Kf4
{[%clk 0:00:12.1]} 47... h1=Q {[%clk 0:00:11.5]} 48. Kg3 {[%clk 0:00:13]} 48...
h4+ {[%clk 0:00:11.5]} 49. Kg4 {[%clk 0:00:13]} 49... h3 {[%clk 0:00:12.4]} 50.
Kg3 {[%clk 0:00:12.5]} 50... h2 {[%clk 0:00:13.3]} 51. Kh3 {[%clk 0:00:12.2]}
51... Qg1 {[%clk 0:00:13.5]} 52. Kh4 {[%clk 0:00:12]} 52... h1=R# {[%clk
0:00:12.8]} 0-1

[Event "*** SCC Grand Prix: Titled Tuesday Blitz"]
[Site "Chess.com"]
[Date "2020.06.23"]
[Round "10"]
[White "WIDBIFS"]
[Black "deribas12345"]
[Result "1-0"]
[WhiteElo "2717"]
[BlackElo "2576"]
[TimeControl "180+1"]
[EndTime "11:57:56 PDT"]
[Termination "WIDBIFS won by resignation"]

1. d4 {[%clk 0:03:00.9]} 1... Nf6 {[%clk 0:02:59.1]} 2. Nf3 {[%clk 0:03:01.3]}
2... d6 {[%clk 0:02:59.7]} 3. Bf4 {[%clk 0:03:00.4]} 3... Bf5 {[%clk 0:02:59.1]}
4. e3 {[%clk 0:03:00.5]} 4... Nbd7 {[%clk 0:02:57.9]} 5. Nbd2 {[%clk 0:03:00.9]}
5... h6 {[%clk 0:02:58.2]} 6. h3 {[%clk 0:03:01]} 6... c6 {[%clk 0:02:56.1]} 7.
c4 {[%clk 0:02:57.4]} 7... g5 {[%clk 0:02:47.5]} 8. Bh2 {[%clk 0:02:56.5]} 8...
Qb6 {[%clk 0:02:48.1]} 9. Qb3 {[%clk 0:02:56.2]} 9... Qxb3 {[%clk 0:02:45.2]}
10. axb3 {[%clk 0:02:55.3]} 10... Bg7 {[%clk 0:02:45.5]} 11. Be2 {[%clk
0:02:50.2]} 11... O-O {[%clk 0:02:44.8]} 12. O-O {[%clk 0:02:50.6]} 12... a6
{[%clk 0:02:45]} 13. b4 {[%clk 0:02:46.4]} 13... c5 {[%clk 0:02:40.8]} 14. bxc5
{[%clk 0:02:37.3]} 14... dxc5 {[%clk 0:02:40.7]} 15. d5 {[%clk 0:02:27.4]} 15...
Ne4 {[%clk 0:02:34.3]} 16. Nxe4 {[%clk 0:02:13.9]} 16... Bxe4 {[%clk 0:02:35.2]}
17. Nd2 {[%clk 0:02:13.9]} 17... Bg6 {[%clk 0:02:35.1]} 18. Ra2 {[%clk 0:02:12]}
18... Be5 {[%clk 0:01:51.1]} 19. b3 {[%clk 0:02:02.8]} 19... Bxh2+ {[%clk
0:01:50.5]} 20. Kxh2 {[%clk 0:02:03.7]} 20... Rfd8 {[%clk 0:01:45.8]} 21. f4
{[%clk 0:02:01.9]} 21... f6 {[%clk 0:01:43.4]} 22. Bg4 {[%clk 0:01:58.7]} 22...
Kg7 {[%clk 0:01:41.6]} 23. Be6 {[%clk 0:01:55.3]} 23... Nf8 {[%clk 0:01:39.1]}
24. f5 {[%clk 0:01:52]} 24... Nxe6 {[%clk 0:01:36.7]} 25. fxe6 {[%clk 0:01:52]}
25... a5 {[%clk 0:01:20]} 26. Rc1 {[%clk 0:01:47.9]} 26... b6 {[%clk 0:01:14.6]}
27. Kg3 {[%clk 0:01:47.9]} 27... f5 {[%clk 0:01:14.2]} 28. Rf1 {[%clk
0:01:27.9]} 28... Rf8 {[%clk 0:01:09.3]} 29. Nf3 {[%clk 0:01:25.7]} 29... Kf6
{[%clk 0:01:07.2]} 30. Kf2 {[%clk 0:01:25.3]} 30... Bh5 {[%clk 0:01:02]} 31. Nd2
{[%clk 0:01:15.5]} 31... Ke5 {[%clk 0:00:59.4]} 32. g3 {[%clk 0:01:14.7]} 32...
Kd6 {[%clk 0:00:58.2]} 33. Nb1 {[%clk 0:01:13.4]} 33... Bg6 {[%clk 0:00:47.7]}
34. Nc3 {[%clk 0:01:12.3]} 34... Be8 {[%clk 0:00:43.9]} 35. Ke2 {[%clk
0:01:05.5]} 35... Ke5 {[%clk 0:00:43.8]} 36. Kd3 {[%clk 0:00:51]} 36... Rb8
{[%clk 0:00:41.8]} 37. Raf2 {[%clk 0:00:45.5]} 37... Bg6 {[%clk 0:00:41.4]} 38.
Kd2 {[%clk 0:00:45.5]} 38... Rbd8 {[%clk 0:00:40.2]} 39. Na4 {[%clk 0:00:43.7]}
39... Rd6 {[%clk 0:00:38.4]} 40. Nc3 {[%clk 0:00:43]} 40... Rfd8 {[%clk
0:00:38]} 41. Kc1 {[%clk 0:00:41.3]} 41... Rf8 {[%clk 0:00:37.4]} 42. Kb2 {[%clk
0:00:37.5]} 42... Rdd8 {[%clk 0:00:37.2]} 43. Ka3 {[%clk 0:00:33.3]} 43... Be8
{[%clk 0:00:36.5]} 44. g4 {[%clk 0:00:27.7]} 44... f4 {[%clk 0:00:30.4]} 45.
exf4+ {[%clk 0:00:28.6]} 45... Rxf4 {[%clk 0:00:29.8]} 46. Rxf4 {[%clk
0:00:23.2]} 46... gxf4 {[%clk 0:00:30.7]} 47. Ne2 {[%clk 0:00:23.8]} 47... b5
{[%clk 0:00:25.3]} 48. Nxf4 {[%clk 0:00:21.9]} 48... bxc4 {[%clk 0:00:22.6]} 49.
bxc4 {[%clk 0:00:22.8]} 49... Kd4 {[%clk 0:00:22.6]} 50. Rc1 {[%clk 0:00:18.8]}
50... Rb8 {[%clk 0:00:22.6]} 51. h4 {[%clk 0:00:16.6]} 51... a4 {[%clk
0:00:20.7]} 52. g5 {[%clk 0:00:16.3]} 52... hxg5 {[%clk 0:00:20.5]} 53. hxg5
{[%clk 0:00:17.2]} 53... Rb3+ {[%clk 0:00:20.6]} 54. Ka2 {[%clk 0:00:18.1]}
54... Rg3 {[%clk 0:00:17.7]} 55. Ne2+ {[%clk 0:00:18.1]} 55... Kd3 {[%clk
0:00:16.8]} 56. Nxg3 {[%clk 0:00:19]} 1-0

[Event "*** SCC Grand Prix: Titled Tuesday Blitz"]
[Site "Chess.com"]
[Date "2020.06.23"]
[Round "10"]
[White "Paladin61"]
[Black "Godzillator"]
[Result "1-0"]
[WhiteElo "2546"]
[BlackElo "2404"]
[TimeControl "180+1"]
[EndTime "11:58:01 PDT"]
[Termination "Paladin61 won by resignation"]

1. b3 {[%clk 0:02:58.2]} 1... d5 {[%clk 0:02:59]} 2. Bb2 {[%clk 0:02:58.2]} 2...
Nf6 {[%clk 0:02:58.2]} 3. Nf3 {[%clk 0:02:57.8]} 3... c6 {[%clk 0:02:58.3]} 4.
g3 {[%clk 0:02:57.7]} 4... Bg4 {[%clk 0:02:57.6]} 5. Bg2 {[%clk 0:02:57.5]} 5...
Nbd7 {[%clk 0:02:57.7]} 6. O-O {[%clk 0:02:57.3]} 6... e6 {[%clk 0:02:57.8]} 7.
d3 {[%clk 0:02:56.3]} 7... Bc5 {[%clk 0:02:57.6]} 8. Nbd2 {[%clk 0:02:53.3]}
8... O-O {[%clk 0:02:56.3]} 9. h3 {[%clk 0:02:52]} 9... Bh5 {[%clk 0:02:55.9]}
10. a3 {[%clk 0:02:50.3]} 10... Qc7 {[%clk 0:02:55.3]} 11. b4 {[%clk 0:02:40.2]}
11... Bb6 {[%clk 0:02:54.9]} 12. c4 {[%clk 0:02:28.3]} 12... a5 {[%clk
0:02:47.5]} 13. Nb3 {[%clk 0:02:06.9]} 13... a4 {[%clk 0:02:41]} 14. Nbd2 {[%clk
0:02:06.3]} 14... Ba7 {[%clk 0:02:21.7]} 15. Kh1 {[%clk 0:01:56.5]} 15... Bb8
{[%clk 0:02:16.6]} 16. Rc1 {[%clk 0:01:53.1]} 16... Qd6 {[%clk 0:02:14.8]} 17.
e4 {[%clk 0:01:45]} 17... dxe4 {[%clk 0:02:07.3]} 18. dxe4 {[%clk 0:01:39.1]}
18... Qe7 {[%clk 0:02:05.1]} 19. Qe1 {[%clk 0:01:18.6]} 19... Rd8 {[%clk
0:02:00.9]} 20. e5 {[%clk 0:00:57.2]} 20... Ne8 {[%clk 0:01:59.9]} 21. Qe3
{[%clk 0:00:44.9]} 21... h6 {[%clk 0:01:54.5]} 22. c5 {[%clk 0:00:31.1]} 22...
Nc7 {[%clk 0:01:51.6]} 23. Nc4 {[%clk 0:00:31.2]} 23... Nd5 {[%clk 0:01:51.3]}
24. Qe4 {[%clk 0:00:30.1]} 24... Bg6 {[%clk 0:01:50.8]} 25. Qe2 {[%clk 0:00:30]}
25... b5 {[%clk 0:01:46.2]} 26. Nd6 {[%clk 0:00:27.1]} 26... Bc7 {[%clk
0:01:39.3]} 27. Nd4 {[%clk 0:00:26.6]} 27... Nb8 {[%clk 0:01:29.7]} 28. f4
{[%clk 0:00:26.5]} 28... Qd7 {[%clk 0:01:19.7]} 29. g4 {[%clk 0:00:24.7]} 29...
Bh7 {[%clk 0:01:12.3]} 30. f5 {[%clk 0:00:22.3]} 30... Rf8 {[%clk 0:01:12.5]}
31. Rf2 {[%clk 0:00:17]} 31... Na6 {[%clk 0:01:06.5]} 32. Rcf1 {[%clk
0:00:16.4]} 32... Naxb4 {[%clk 0:01:05.1]} 33. axb4 {[%clk 0:00:15.7]} 33... a3
{[%clk 0:01:05.4]} 34. Ba1 {[%clk 0:00:15.9]} 34... Nxb4 {[%clk 0:01:04.4]} 35.
fxe6 {[%clk 0:00:15]} 35... fxe6 {[%clk 0:01:04.1]} 36. Rxf8+ {[%clk 0:00:13.2]}
36... Rxf8 {[%clk 0:01:03.4]} 37. Rxf8+ {[%clk 0:00:13.1]} 37... Kxf8 {[%clk
0:01:03.7]} 38. Qf3+ {[%clk 0:00:14]} 38... Kg8 {[%clk 0:01:04.1]} 39. Qxa3
{[%clk 0:00:13.5]} 39... Nd3 {[%clk 0:00:59]} 40. Qa8+ {[%clk 0:00:12.7]} 40...
Qd8 {[%clk 0:00:56.7]} 41. Qxd8+ {[%clk 0:00:09.5]} 41... Bxd8 {[%clk
0:00:56.9]} 42. Nxe6 {[%clk 0:00:09.6]} 42... Bh4 {[%clk 0:00:52.2]} 43. Bxc6
{[%clk 0:00:09.2]} 43... Nxe5 {[%clk 0:00:50.6]} 44. Bxb5 {[%clk 0:00:07.5]}
44... Nd3 {[%clk 0:00:45.3]} 45. c6 {[%clk 0:00:06.1]} 45... Nf2+ {[%clk
0:00:45.2]} 46. Kg2 {[%clk 0:00:05.7]} 46... Ne4 {[%clk 0:00:36.6]} 47. Nxe4
{[%clk 0:00:05.6]} 47... Bxe4+ {[%clk 0:00:36.6]} 48. Kg1 {[%clk 0:00:06.5]}
48... Bd5 {[%clk 0:00:36]} 49. Nxg7 {[%clk 0:00:06]} 49... Bg5 {[%clk
0:00:32.4]} 50. Nf5 {[%clk 0:00:06.2]} 50... Kf7 {[%clk 0:00:31.6]} 51. c7
{[%clk 0:00:05.5]} 51... Bb7 {[%clk 0:00:31.3]} 52. Nd6+ {[%clk 0:00:05.3]}
52... Ke6 {[%clk 0:00:29.6]} 53. Nxb7 {[%clk 0:00:06.2]} 53... Be3+ {[%clk
0:00:25.9]} 54. Kg2 {[%clk 0:00:06.5]} 1-0

[Event "*** SCC Grand Prix: Titled Tuesday Blitz"]
[Site "Chess.com"]
[Date "2020.06.23"]
[Round "10"]
[White "Enki007"]
[Black "kirillshevchenko"]
[Result "1-0"]
[WhiteElo "2765"]
[BlackElo "2910"]
[TimeControl "180+1"]
[EndTime "11:58:02 PDT"]
[Termination "Enki007 won by resignation"]

1. d4 {[%clk 0:03:00.9]} 1... d6 {[%clk 0:02:59]} 2. Nf3 {[%clk 0:02:57.8]} 2...
Nf6 {[%clk 0:02:58.7]} 3. Nbd2 {[%clk 0:02:57]} 3... d5 {[%clk 0:02:56.5]} 4. c4
{[%clk 0:02:53.8]} 4... c6 {[%clk 0:02:55.4]} 5. g3 {[%clk 0:02:52.8]} 5... g6
{[%clk 0:02:54.5]} 6. Bg2 {[%clk 0:02:52.7]} 6... Bg7 {[%clk 0:02:54.8]} 7. O-O
{[%clk 0:02:50]} 7... O-O {[%clk 0:02:54.4]} 8. b3 {[%clk 0:02:50.4]} 8... Bf5
{[%clk 0:02:53.1]} 9. Bb2 {[%clk 0:02:50.2]} 9... a5 {[%clk 0:02:51.8]} 10. a3
{[%clk 0:02:44.8]} 10... Na6 {[%clk 0:02:49.1]} 11. e3 {[%clk 0:02:44]} 11...
Ne4 {[%clk 0:02:35.6]} 12. Rc1 {[%clk 0:02:43.5]} 12... Qb6 {[%clk 0:02:19]} 13.
Nxe4 {[%clk 0:02:24.4]} 13... Bxe4 {[%clk 0:02:17.9]} 14. Nd2 {[%clk 0:02:20.8]}
14... Bxg2 {[%clk 0:02:15.7]} 15. Kxg2 {[%clk 0:02:21.7]} 15... Rac8 {[%clk
0:02:07.4]} 16. Qe2 {[%clk 0:02:12.9]} 16... Rfd8 {[%clk 0:02:01.4]} 17. Rc2
{[%clk 0:01:58.3]} 17... c5 {[%clk 0:01:39.1]} 18. cxd5 {[%clk 0:01:34.5]} 18...
cxd4 {[%clk 0:01:39]} 19. Rxc8 {[%clk 0:01:32.7]} 19... Rxc8 {[%clk 0:01:39.9]}
20. exd4 {[%clk 0:01:24]} 20... Rc2 {[%clk 0:01:37.3]} 21. Rc1 {[%clk
0:01:00.7]} 21... Rxc1 {[%clk 0:01:20]} 22. Bxc1 {[%clk 0:01:01.6]} 22... Qxd4
{[%clk 0:01:18.9]} 23. Qc4 {[%clk 0:00:54.9]} 23... Nc5 {[%clk 0:01:13.2]} 24.
Nf3 {[%clk 0:00:52.1]} 24... Qxc4 {[%clk 0:01:03.4]} 25. bxc4 {[%clk 0:00:53]}
25... Nd3 {[%clk 0:00:53.5]} 26. Be3 {[%clk 0:00:46.8]} 26... Kf8 {[%clk
0:00:46.9]} 27. Kf1 {[%clk 0:00:44.2]} 27... a4 {[%clk 0:00:43.3]} 28. Ke2
{[%clk 0:00:42.4]} 28... Nb2 {[%clk 0:00:43.8]} 29. c5 {[%clk 0:00:41.1]} 29...
Nc4 {[%clk 0:00:43.9]} 30. Bc1 {[%clk 0:00:39.4]} 30... Ke8 {[%clk 0:00:35.4]}
31. Kd3 {[%clk 0:00:38.4]} 31... Na5 {[%clk 0:00:35.7]} 32. Bd2 {[%clk
0:00:31.3]} 32... Nb3 {[%clk 0:00:35.7]} 33. Bb4 {[%clk 0:00:30.7]} 33... Kd7
{[%clk 0:00:30.6]} 34. Kc4 {[%clk 0:00:31.2]} 34... e5 {[%clk 0:00:17]} 35. Kb5
{[%clk 0:00:27.8]} 35... e4 {[%clk 0:00:15.4]} 36. Ng5 {[%clk 0:00:27.7]} 36...
f5 {[%clk 0:00:14.6]} 37. Kxa4 {[%clk 0:00:25.2]} 37... Nc1 {[%clk 0:00:14.9]}
38. Kb5 {[%clk 0:00:14.7]} 38... Nd3 {[%clk 0:00:14.7]} 39. c6+ {[%clk 0:00:14]}
39... bxc6+ {[%clk 0:00:14.4]} 40. dxc6+ {[%clk 0:00:14.9]} 40... Kc8 {[%clk
0:00:14.4]} 41. Ne6 {[%clk 0:00:14]} 41... Be5 {[%clk 0:00:13.8]} 42. Bc5 {[%clk
0:00:13.8]} 42... h6 {[%clk 0:00:03.1]} 43. h4 {[%clk 0:00:14.1]} 43... g5
{[%clk 0:00:02.4]} 44. hxg5 {[%clk 0:00:14.1]} 44... hxg5 {[%clk 0:00:03]} 45.
Nxg5 {[%clk 0:00:14.3]} 45... f4 {[%clk 0:00:02.2]} 46. gxf4 {[%clk 0:00:10.2]}
46... Bxf4 {[%clk 0:00:02.7]} 47. Nxe4 {[%clk 0:00:10.9]} 47... Bc1 {[%clk
0:00:02]} 48. a4 {[%clk 0:00:10.2]} 48... Kc7 {[%clk 0:00:02.5]} 49. Bb6+ {[%clk
0:00:09.7]} 49... Kc8 {[%clk 0:00:02.4]} 50. a5 {[%clk 0:00:10.1]} 50... Ba3
{[%clk 0:00:01.9]} 51. a6 {[%clk 0:00:10.1]} 1-0

[Event "*** SCC Grand Prix: Titled Tuesday Blitz"]
[Site "Chess.com"]
[Date "2020.06.23"]
[Round "10"]
[White "MaxVavulin"]
[Black "SiddharthGMJagadeesh"]
[Result "0-1"]
[WhiteElo "2542"]
[BlackElo "2458"]
[TimeControl "180+1"]
[EndTime "11:58:03 PDT"]
[Termination "SiddharthGMJagadeesh won on time"]

1. e4 {[%clk 0:03:00.9]} 1... c6 {[%clk 0:02:57.8]} 2. d4 {[%clk 0:02:59.2]}
2... d5 {[%clk 0:02:57.9]} 3. Nc3 {[%clk 0:02:59.9]} 3... dxe4 {[%clk
0:02:57.5]} 4. Nxe4 {[%clk 0:03:00]} 4... Nf6 {[%clk 0:02:58.2]} 5. Nxf6+ {[%clk
0:02:59.5]} 5... exf6 {[%clk 0:02:59.1]} 6. c3 {[%clk 0:02:58.6]} 6... Bd6
{[%clk 0:02:59.1]} 7. Bd3 {[%clk 0:02:58.6]} 7... O-O {[%clk 0:02:59.1]} 8. Qc2
{[%clk 0:02:58.6]} 8... Re8+ {[%clk 0:02:57.7]} 9. Ne2 {[%clk 0:02:59.1]} 9...
h5 {[%clk 0:02:57.9]} 10. Be3 {[%clk 0:02:59.3]} 10... Nd7 {[%clk 0:02:57.3]}
11. O-O-O {[%clk 0:02:59.2]} 11... Nf8 {[%clk 0:02:57.5]} 12. c4 {[%clk
0:02:56.2]} 12... Be6 {[%clk 0:02:56.5]} 13. Kb1 {[%clk 0:02:55.6]} 13... Rc8
{[%clk 0:02:56.4]} 14. Nc3 {[%clk 0:02:54.8]} 14... Ng6 {[%clk 0:02:55.1]} 15.
Rhe1 {[%clk 0:02:36.7]} 15... b5 {[%clk 0:02:53.3]} 16. cxb5 {[%clk 0:02:32.4]}
16... Ne7 {[%clk 0:02:53.4]} 17. bxc6 {[%clk 0:02:25.4]} 17... Nd5 {[%clk
0:02:25.1]} 18. Bb5 {[%clk 0:02:04.9]} 18... Qa5 {[%clk 0:02:10.2]} 19. Bf1
{[%clk 0:00:15.8]} 19... Bf5 {[%clk 0:01:57.4]} 20. Bd3 {[%clk 0:00:13.3]} 20...
Nb4 {[%clk 0:01:57.4]} 21. Bxf5 {[%clk 0:00:13.8]} 21... Nxc2 {[%clk 0:01:57.5]}
22. Bxc2 {[%clk 0:00:14.2]} 22... Rxc6 {[%clk 0:01:37.9]} 23. Ba4 {[%clk
0:00:13.7]} 23... Rb8 {[%clk 0:01:35.6]} 24. Bb3 {[%clk 0:00:09.3]} 24... Rxc3
{[%clk 0:00:51.3]} 25. bxc3 {[%clk 0:00:09.1]} 25... Qxc3 {[%clk 0:00:51.9]} 26.
Rd2 {[%clk 0:00:06.5]} 26... Ba3 {[%clk 0:00:39.7]} 27. Red1 {[%clk 0:00:06.5]}
27... Rxb3+ {[%clk 0:00:33.3]} 28. axb3 {[%clk 0:00:06.5]} 28... Qxb3+ {[%clk
0:00:34.2]} 29. Ka1 {[%clk 0:00:06.5]} 29... Bb4 {[%clk 0:00:34.8]} 30. Rc1
{[%clk 0:00:06.3]} 30... Bxd2 {[%clk 0:00:29]} 31. Bxd2 {[%clk 0:00:06.2]} 31...
Qa4+ {[%clk 0:00:29.1]} 32. Kb2 {[%clk 0:00:05.6]} 32... Qxd4+ {[%clk 0:00:29]}
33. Bc3 {[%clk 0:00:05.9]} 33... Qxf2+ {[%clk 0:00:29.1]} 34. Rc2 {[%clk
0:00:06.6]} 34... Qb6+ {[%clk 0:00:29.3]} 35. Kc1 {[%clk 0:00:05.8]} 35... Qg1+
{[%clk 0:00:28.5]} 36. Kb2 {[%clk 0:00:05.6]} 36... Qxh2 {[%clk 0:00:29.1]} 37.
Rd2 {[%clk 0:00:05.8]} 37... Qb8+ {[%clk 0:00:27.6]} 38. Kc2 {[%clk 0:00:05.4]}
38... h4 {[%clk 0:00:27.5]} 39. Rd4 {[%clk 0:00:05.1]} 39... Qg3 {[%clk
0:00:26.3]} 40. Rd8+ {[%clk 0:00:04.5]} 40... Kh7 {[%clk 0:00:26.6]} 41. Rd2
{[%clk 0:00:05.4]} 41... f5 {[%clk 0:00:23.6]} 42. Kb2 {[%clk 0:00:04.7]} 42...
f4 {[%clk 0:00:23.9]} 43. Kb3 {[%clk 0:00:04]} 43... f3 {[%clk 0:00:22.9]} 44.
gxf3 {[%clk 0:00:04.3]} 44... Qxf3 {[%clk 0:00:23.8]} 45. Rh2 {[%clk 0:00:04.2]}
45... h3 {[%clk 0:00:23.9]} 46. Rd2 {[%clk 0:00:03.8]} 46... Qg3 {[%clk
0:00:19.5]} 47. Rd5 {[%clk 0:00:03.8]} 47... h2 {[%clk 0:00:16.4]} 48. Rh5+
{[%clk 0:00:04.2]} 48... Kg8 {[%clk 0:00:16.6]} 49. Kb2 {[%clk 0:00:02.8]} 49...
Qg2+ {[%clk 0:00:16.2]} 50. Kb3 {[%clk 0:00:03.3]} 50... h1=Q {[%clk 0:00:16.6]}
51. Rxh1 {[%clk 0:00:02.9]} 51... Qxh1 {[%clk 0:00:17.5]} 52. Kc4 {[%clk
0:00:03.2]} 52... Qc6+ {[%clk 0:00:17.3]} 53. Kd3 {[%clk 0:00:03]} 53... g5
{[%clk 0:00:18]} 54. Bd2 {[%clk 0:00:02.8]} 54... g4 {[%clk 0:00:18.4]} 55. Be3
{[%clk 0:00:03.2]} 55... g3 {[%clk 0:00:18.8]} 56. Bxa7 {[%clk 0:00:03.2]} 56...
g2 {[%clk 0:00:18.9]} 57. Be3 {[%clk 0:00:01.6]} 57... Qf3 {[%clk 0:00:18.7]}
58. Kd4 {[%clk 0:00:01.7]} 58... f5 {[%clk 0:00:18.5]} 0-1

[Event "*** SCC Grand Prix: Titled Tuesday Blitz"]
[Site "Chess.com"]
[Date "2020.06.23"]
[Round "10"]
[White "Resignify"]
[Black "PattyCastillo"]
[Result "1-0"]
[WhiteElo "2128"]
[BlackElo "1923"]
[TimeControl "180+1"]
[EndTime "11:58:03 PDT"]
[Termination "Resignify won on time"]

1. Nf3 {[%clk 0:03:00.9]} 1... d5 {[%clk 0:02:53.7]} 2. g3 {[%clk 0:03:00.9]}
2... Nf6 {[%clk 0:02:52.9]} 3. Bg2 {[%clk 0:03:01.1]} 3... c6 {[%clk 0:02:52.4]}
4. d3 {[%clk 0:03:01.5]} 4... e6 {[%clk 0:02:52.3]} 5. O-O {[%clk 0:03:01.6]}
5... Nbd7 {[%clk 0:02:52.4]} 6. Nbd2 {[%clk 0:03:01.2]} 6... Be7 {[%clk
0:02:52.1]} 7. b3 {[%clk 0:03:01.4]} 7... O-O {[%clk 0:02:51.5]} 8. Bb2 {[%clk
0:03:01.6]} 8... b6 {[%clk 0:02:51.8]} 9. c4 {[%clk 0:03:01.1]} 9... Bb7 {[%clk
0:02:51.8]} 10. Rc1 {[%clk 0:03:00.4]} 10... Rc8 {[%clk 0:02:51]} 11. Re1 {[%clk
0:02:54.3]} 11... Re8 {[%clk 0:02:49.3]} 12. Rc2 {[%clk 0:02:48.4]} 12... c5
{[%clk 0:02:47.2]} 13. e3 {[%clk 0:02:46.3]} 13... Qc7 {[%clk 0:02:34.1]} 14.
Qa1 {[%clk 0:02:43]} 14... Qb8 {[%clk 0:02:33.3]} 15. Ne5 {[%clk 0:02:29]} 15...
Bf8 {[%clk 0:02:09.2]} 16. h3 {[%clk 0:02:20]} 16... Qa8 {[%clk 0:02:03.8]} 17.
Nxd7 {[%clk 0:02:07.4]} 17... Nxd7 {[%clk 0:02:01.8]} 18. Kh2 {[%clk 0:02:04.2]}
18... f6 {[%clk 0:01:26.8]} 19. d4 {[%clk 0:01:57.2]} 19... Re7 {[%clk
0:01:11.1]} 20. Rcc1 {[%clk 0:01:40.9]} 20... Rce8 {[%clk 0:01:10.2]} 21. cxd5
{[%clk 0:01:24.6]} 21... Bxd5 {[%clk 0:01:03.3]} 22. Bxd5 {[%clk 0:01:17.7]}
22... exd5 {[%clk 0:01:03.1]} 23. Nf3 {[%clk 0:01:13.5]} 23... Qb7 {[%clk
0:00:52.2]} 24. Qb1 {[%clk 0:01:12.9]} 24... Re4 {[%clk 0:00:48]} 25. Nd2 {[%clk
0:01:08.6]} 25... R4e6 {[%clk 0:00:43.1]} 26. Nf3 {[%clk 0:01:03.3]} 26... Re4
{[%clk 0:00:40.6]} 27. Qc2 {[%clk 0:00:54]} 27... Bd6 {[%clk 0:00:34]} 28. Red1
{[%clk 0:00:47.8]} 28... Qb8 {[%clk 0:00:32]} 29. Kg2 {[%clk 0:00:45.9]} 29...
Qb7 {[%clk 0:00:29.2]} 30. Nd2 {[%clk 0:00:42.5]} 30... R4e6 {[%clk 0:00:27.6]}
31. Qf5 {[%clk 0:00:38.4]} 31... g6 {[%clk 0:00:19.6]} 32. Qf3 {[%clk
0:00:36.7]} 32... Qa8 {[%clk 0:00:16.1]} 33. Nb1 {[%clk 0:00:32]} 33... f5
{[%clk 0:00:14.3]} 34. Nc3 {[%clk 0:00:30.8]} 34... Nf6 {[%clk 0:00:13.9]} 35.
Nb5 {[%clk 0:00:28.9]} 35... Bb8 {[%clk 0:00:13]} 36. dxc5 {[%clk 0:00:23.9]}
36... bxc5 {[%clk 0:00:12.9]} 37. Bxf6 {[%clk 0:00:20.6]} 37... Rxf6 {[%clk
0:00:12]} 38. Qxd5+ {[%clk 0:00:20.3]} 38... Qxd5+ {[%clk 0:00:09.7]} 39. Rxd5
{[%clk 0:00:21.2]} 39... Rfe6 {[%clk 0:00:09.5]} 40. Rdxc5 {[%clk 0:00:20]}
40... a6 {[%clk 0:00:09.5]} 41. Nc3 {[%clk 0:00:15]} 41... Be5 {[%clk
0:00:08.4]} 42. Ne2 {[%clk 0:00:12.9]} 42... Bb2 {[%clk 0:00:07.4]} 43. R1c2
{[%clk 0:00:13]} 43... Ba3 {[%clk 0:00:07.5]} 44. Rc8 {[%clk 0:00:12.7]} 44...
Kf7 {[%clk 0:00:06.8]} 45. Nd4 {[%clk 0:00:10.9]} 45... R6e7 {[%clk 0:00:05.8]}
46. R8c7 {[%clk 0:00:10]} 46... a5 {[%clk 0:00:04.8]} 47. Rxe7+ {[%clk
0:00:09.5]} 47... Rxe7 {[%clk 0:00:04.9]} 48. Rc4 {[%clk 0:00:08]} 48... Rd7
{[%clk 0:00:03.2]} 49. Kf3 {[%clk 0:00:07]} 49... h6 {[%clk 0:00:02.7]} 50. Ke2
{[%clk 0:00:06.4]} 50... Kf6 {[%clk 0:00:01.7]} 51. Rc6+ {[%clk 0:00:05.8]} 1-0